bitfinex-derivatives/quotes_SOLF0:USTF0_20260118
["timestamp","ask_amount","ask_price","bid_price","bid_amount"]
[1768735244000,5.25354927,142.34,142.25,3.6207407]
[1768735244197,0.32509323,142.35,142.25,3.6207407]
[1768735244396,5.25413696,142.34,142.25,3.6207407]
[1768735244603,0.32509323,142.35,142.25,3.6207407]
[1768735244797,5.25413696,142.34,142.25,3.6207407]
[1768735244998,0.32509323,142.35,142.25,3.6207407]
[1768735245203,5.25413696,142.34,142.25,3.6207407]
[1768735245406,0.32509323,142.35,142.25,3.6207407]
[1768735245703,5.25416702,142.34,142.25,3.6207407]
[1768735245904,0.32509323,142.35,142.25,3.6207407]
[1768735246091,5.25416702,142.34,142.25,3.6207407]
[1768735246398,0.32509323,142.35,142.25,3.6207407]
[1768735246593,5.25583949,142.34,142.25,3.6207407]
[1768735246791,0.32509323,142.35,142.25,3.6207407]
[1768735246995,5.25610451,142.34,142.25,3.6207407]
[1768735247301,0.32509323,142.35,142.25,3.6207407]
[1768735247499,5.25685474,142.34,142.25,3.6207407]
[1768735247700,0.32509323,142.35,142.25,3.6207407]
[1768735247900,5.25687795,142.34,142.25,3.6207407]
[1768735248105,0.32509323,142.35,142.25,3.6207407]
[1768735248305,5.25685474,142.34,142.25,3.6207407]
[1768735248604,0.32509323,142.35,142.25,3.6207407]
[1768735248807,5.25782222,142.34,142.25,3.6207407]
[1768735249007,0.32509323,142.35,142.25,3.6207407]
[1768735249306,5.25829237,142.34,142.25,3.6207407]
[1768735249502,0.32509323,142.35,142.25,3.6207407]
[1768735249702,5.25902258,142.34,142.25,3.6207407]
[1768735249903,0.32509323,142.35,142.25,3.6207407]
[1768735250103,5.25902258,142.34,142.25,3.6207407]
[1768735250304,0.32509323,142.35,142.25,3.6207407]
[1768735250506,5.25900117,142.34,142.25,3.6207407]
[1768735250703,0.32509323,142.35,142.25,3.6207407]
[1768735250902,5.25900117,142.34,142.25,3.6207407]
[1768735251103,0.32509323,142.35,142.25,3.6207407]
[1768735251299,5.25900117,142.34,142.25,3.6207407]
[1768735251509,0.32509323,142.35,142.25,3.6207407]
[1768735251704,5.25898331,142.34,142.25,3.6207407]
[1768735251909,0.32509323,142.35,142.25,3.6207407]
[1768735252217,5.25896011,142.34,142.25,3.6207407]
[1768735252412,0.32509323,142.35,142.25,3.6207407]
[1768735252616,5.25888317,142.34,142.25,3.6207407]
[1768735252811,0.32509323,142.35,142.25,3.6207407]
[1768735253013,5.25886114,142.34,142.25,3.6207407]
[1768735253312,5.25886114,142.33,142.25,3.6207407]
[1768735253513,0.32509323,142.35,142.25,3.6207407]
[1768735253714,5.25870364,142.34,142.25,3.6207407]
[1768735253912,5.25870364,142.33,142.25,3.6207407]
[1768735254114,0.32509323,142.35,142.25,3.6207407]
[1768735254317,5.58071639,142.34,142.25,3.6207407]
[1768735254517,5.25843365,142.33,142.25,3.6207407]
[1768735254817,0.32228274,142.34,142.25,3.6207407]
[1768735255118,5.25963555,142.33,142.25,3.6207407]
[1768735255317,0.32228274,142.34,142.25,3.6207407]
[1768735255513,5.25923849,142.33,142.25,3.6207407]
[1768735255818,0.32228274,142.34,142.25,3.6207407]
[1768735256017,0.32239483,142.32,142.25,3.6207407]
[1768735258016,0.32253892,142.3,142.22,3.63859169]
[1768735258216,0.32253892,142.3,142.23,3.63859169]
[1768735260018,0.32267387,142.4,142.23,3.63859169]
[1768735260219,0.32267387,142.37,142.23,3.63859169]
[1768735260419,0.32267387,142.35,142.23,3.63859169]
[1768735260620,0.32267387,142.33,142.23,3.63859169]
[1768735260821,5.5746592,142.32,142.23,3.63859169]
[1768735261019,0.32271806,142.32,142.23,3.63859169]
[1768735283448,0.32531909,142.41,142.23,3.63859169]
[1768735283650,0.32531909,142.38,142.23,3.63859169]
[1768735283954,0.32532664,142.36,142.23,3.63859169]
[1768735284253,5.57318721,142.35,142.23,3.63859169]
[1768735284454,0.32532664,142.35,142.23,3.63859169]
[1768735299764,0.32432193,142.41,142.24,3.32979857]
[1768735299964,0.32432193,142.39,142.24,3.32979857]
[1768735300161,5.56928027,142.38,142.25,3.32979857]
[1768735300365,5.24495834,142.37,142.25,3.32979857]
[1768735300566,0.32432193,142.38,142.25,3.32979857]
[1768735300765,5.24317713,142.37,142.25,3.32979857]
[1768735301061,0.32432193,142.38,142.25,3.32979857]
[1768735302368,0.32432193,142.38,142.26,3.32979857]
[1768735310570,0.32446388,142.36,142.26,3.32979857]
[1768735318168,5.23048808,142.35,142.26,3.32979857]
[1768735318374,0.32299514,142.34,142.26,3.32979857]
[1768735346097,38.62668027,142.45,142.26,3.32979857]
[1768735346397,0.32649833,142.42,142.26,3.32979857]
[1768735346599,0.32649833,142.39,142.26,3.32979857]
[1768735346798,0.32647914,142.37,142.26,3.32979857]
[1768735346999,5.56157018,142.36,142.26,3.32979857]
[1768735347200,5.23509104,142.35,142.26,3.32979857]
[1768735348707,5.56157017,142.35,142.26,3.32979857]
[1768735349005,5.23509104,142.34,142.26,3.32979857]
[1768735353111,0.32647913,142.35,142.26,3.32979857]
[1768735353402,5.24059716,142.34,142.26,3.32979857]
[1768735353705,0.32647913,142.35,142.26,3.32979857]
[1768735353908,5.24069743,142.34,142.26,3.32979857]
[1768735354094,0.32647913,142.35,142.26,3.32979857]
[1768735354296,5.24069743,142.34,142.26,3.32979857]
[1768735354502,0.32647913,142.35,142.26,3.32979857]
[1768735354698,5.24201189,142.34,142.26,3.32979857]
[1768735354900,0.32647913,142.35,142.26,3.32979857]
[1768735355101,5.24201189,142.34,142.26,3.32979857]
[1768735355402,0.32647913,142.35,142.26,3.32979857]
[1768735355604,5.2436676,142.34,142.26,3.32979857]
[1768735355906,0.32647913,142.35,142.26,3.32979857]
[1768735356101,5.2436676,142.34,142.26,3.32979857]
[1768735356297,0.32647913,142.35,142.26,3.32979857]
[1768735356499,5.24438933,142.34,142.26,3.32979857]
[1768735356698,0.32647913,142.35,142.26,3.32979857]
[1768735356898,5.24438933,142.34,142.26,3.32979857]
[1768735357098,0.32647913,142.35,142.26,3.32979857]
[1768735357398,5.24519618,142.34,142.26,3.32979857]
[1768735357598,5.24519618,142.33,142.26,3.32979857]
[1768735357800,0.32647913,142.35,142.26,3.32979857]
[1768735358001,5.24525619,142.34,142.26,3.32979857]
[1768735358197,5.24525619,142.33,142.26,3.32979857]
[1768735358397,0.32647913,142.35,142.26,3.32979857]
[1768735358598,5.24635792,142.34,142.26,3.32979857]
[1768735358797,5.24635792,142.33,142.26,3.32979857]
[1768735358999,0.32647913,142.35,142.26,3.32979857]
[1768735359206,5.24635792,142.34,142.26,3.32979857]
[1768735359406,5.24635792,142.33,142.26,3.32979857]
[1768735359596,0.32647913,142.35,142.26,3.32979857]
[1768735359800,5.24757074,142.34,142.26,3.32979857]
[1768735360000,5.24757074,142.33,142.26,3.32979857]
[1768735360296,0.32647913,142.35,142.26,3.32979857]
[1768735360500,5.24830134,142.34,142.26,3.32979857]
[1768735360702,5.24830134,142.33,142.26,3.32979857]
[1768735360901,0.32647913,142.35,142.26,3.32979857]
[1768735361210,5.57497673,142.34,142.26,3.32979857]
[1768735361406,5.24830134,142.33,142.26,3.32979857]
[1768735361603,0.32667539,142.34,142.26,3.32979857]
[1768735361808,5.24953227,142.33,142.26,3.32979857]
[1768735362006,0.32667539,142.34,142.26,3.32979857]
[1768735362207,5.24953227,142.33,142.26,3.32979857]
[1768735362409,0.32667539,142.34,142.26,3.32979857]
[1768735362610,5.24963723,142.33,142.26,3.32979857]
[1768735362811,0.32667539,142.34,142.26,3.32979857]
[1768735363010,5.24963723,142.33,142.26,3.32979857]
[1768735363212,0.32667539,142.34,142.26,3.32979857]
[1768735363407,5.24975794,142.33,142.26,3.32979857]
[1768735363606,0.32667539,142.34,142.26,3.32979857]
[1768735363817,5.24976054,142.33,142.26,3.32979857]
[1768735364008,0.32667539,142.34,142.26,3.32979857]
[1768735364207,5.24976054,142.33,142.26,3.32979857]
[1768735364507,0.32667539,142.34,142.26,3.32979857]
[1768735364708,5.24991334,142.33,142.26,3.32979857]
[1768735364906,0.32667539,142.34,142.26,3.32979857]
[1768735365108,5.24991334,142.33,142.26,3.32979857]
[1768735365308,0.32667539,142.34,142.26,3.32979857]
[1768735365605,5.24991158,142.33,142.26,3.32979857]
[1768735365905,0.32667539,142.34,142.26,3.32979857]
[1768735366100,38.62668027,142.44,142.26,3.32979857]
[1768735366101,5.24991158,142.33,142.26,3.32979857]
[1768735366413,0.31908418,142.36,142.26,3.32979857]
[1768735366613,5.24809138,142.35,142.26,3.32979857]
[1768735366805,5.24809138,142.34,142.26,3.32979857]
[1768735367005,0.31908418,142.36,142.26,3.32979857]
[1768735367201,5.24807215,142.35,142.26,3.32979857]
[1768735367504,5.24807215,142.34,142.26,3.32979857]
[1768735367709,0.31908418,142.36,142.26,3.32979857]
[1768735367913,5.24734297,142.35,142.26,3.32979857]
[1768735368111,5.24734297,142.34,142.26,3.32979857]
[1768735368310,0.31908418,142.36,142.26,3.32979857]
[1768735368511,5.2465508,142.35,142.26,3.32979857]
[1768735368811,5.2465508,142.34,142.26,3.32979857]
[1768735369116,0.31908418,142.36,142.26,3.32979857]
[1768735369310,5.24664543,142.35,142.26,3.32979857]
[1768735369506,5.24664543,142.34,142.26,3.32979857]
[1768735369811,0.31908418,142.36,142.26,3.32979857]
[1768735370011,0.28925363,142.34,142.26,3.32979857]
[1768735387425,5.24459798,142.33,142.26,3.32979857]
[1768735387623,0.28925363,142.34,142.26,3.32979857]
[1768735387823,5.24459798,142.33,142.26,3.32979857]
[1768735388015,0.28925363,142.34,142.26,3.32979857]
[1768735388222,5.24459798,142.33,142.26,3.32979857]
[1768735388515,0.28925363,142.34,142.26,3.32979857]
[1768735388721,5.2445899,142.33,142.26,3.32979857]
[1768735388923,0.28925363,142.34,142.26,3.32979857]
[1768735389229,5.2445899,142.33,142.26,3.32979857]
[1768735389429,0.28925363,142.34,142.26,3.32979857]
[1768735389630,5.24458102,142.33,142.26,3.32979857]
[1768735389825,0.28925363,142.34,142.26,3.32979857]
[1768735390026,5.24458102,142.33,142.26,3.32979857]
[1768735390229,0.28925363,142.34,142.26,3.32979857]
[1768735390420,5.24457218,142.33,142.26,3.32979857]
[1768735390627,0.28925363,142.34,142.26,3.32979857]
[1768735390928,5.24457218,142.33,142.26,3.32979857]
[1768735391128,0.28925363,142.34,142.26,3.32979857]
[1768735391329,5.24457218,142.33,142.26,3.32979857]
[1768735391523,0.28925363,142.34,142.26,3.32979857]
[1768735391824,5.24453622,142.33,142.26,3.32979857]
[1768735392023,0.28925363,142.34,142.26,3.32979857]
[1768735392318,5.24453622,142.33,142.26,3.32979857]
[1768735392618,0.28925363,142.34,142.26,3.32979857]
[1768735392822,5.24450075,142.33,142.26,3.32979857]
[1768735393027,0.28925363,142.34,142.26,3.32979857]
[1768735393223,5.24450075,142.33,142.26,3.32979857]
[1768735393426,0.28925363,142.34,142.26,3.32979857]
[1768735393627,5.24446578,142.33,142.26,3.32979857]
[1768735393827,0.28925363,142.34,142.26,3.32979857]
[1768735394029,5.24446578,142.33,142.26,3.32979857]
[1768735394330,0.28925363,142.34,142.26,3.32979857]
[1768735394529,5.24443128,142.33,142.26,3.32979857]
[1768735394726,0.28925363,142.34,142.26,3.32979857]
[1768735394925,5.24443128,142.33,142.26,3.32979857]
[1768735395227,0.28925363,142.34,142.26,3.32979857]
[1768735395427,5.24439725,142.33,142.26,3.32979857]
[1768735395627,0.28925363,142.34,142.26,3.32979857]
[1768735395828,5.24439725,142.33,142.26,3.32979857]
[1768735396028,0.28925363,142.34,142.26,3.32979857]
[1768735396231,5.24439725,142.33,142.26,3.32979857]
[1768735396427,0.28925363,142.34,142.26,3.32979857]
[1768735396734,5.24436367,142.33,142.26,3.32979857]
[1768735396927,0.28925363,142.34,142.26,3.32979857]
[1768735397122,5.24436367,142.33,142.26,3.32979857]
[1768735397323,0.28925363,142.34,142.26,3.32979857]
[1768735397627,5.24433054,142.33,142.26,3.32979857]
[1768735397927,0.28925363,142.34,142.26,3.32979857]
[1768735398127,5.24433054,142.33,142.26,3.32979857]
[1768735398329,0.28925363,142.34,142.26,3.32979857]
[1768735398627,5.24429785,142.33,142.26,3.32979857]
[1768735398827,0.28925363,142.34,142.26,3.32979857]
[1768735399023,5.24429785,142.33,142.26,3.32979857]
[1768735399223,0.28925363,142.34,142.26,3.32979857]
[1768735399525,5.24429097,142.33,142.26,3.32979857]
[1768735399735,0.28925363,142.34,142.26,3.32979857]
[1768735399933,5.2442656,142.33,142.26,3.32979857]
[1768735400134,0.28925363,142.34,142.26,3.32979857]
[1768735400332,5.2442656,142.33,142.26,3.32979857]
[1768735400533,0.28925363,142.34,142.26,3.32979857]
[1768735400734,5.24423376,142.33,142.26,3.32979857]
[1768735401032,0.28925363,142.34,142.26,3.32979857]
[1768735401232,5.24423376,142.33,142.26,3.32979857]
[1768735401434,0.28925363,142.34,142.26,3.32979857]
[1768735401630,5.24420234,142.33,142.26,3.32979857]
[1768735401830,0.28925363,142.34,142.26,3.32979857]
[1768735402032,5.24420234,142.33,142.26,3.32979857]
[1768735402230,0.28925363,142.34,142.26,3.32979857]
[1768735402435,5.24420011,142.33,142.26,3.32979857]
[1768735402631,0.28925363,142.34,142.26,3.32979857]
[1768735402831,5.24417133,142.33,142.26,3.32979857]
[1768735403034,0.28925363,142.34,142.26,3.32979857]
[1768735403231,5.24417133,142.33,142.26,3.32979857]
[1768735403438,0.28925363,142.34,142.26,3.32979857]
[1768735403643,5.24414072,142.33,142.26,3.32979857]
[1768735403940,0.28925363,142.34,142.26,3.32979857]
[1768735404143,5.24414072,142.33,142.26,3.32979857]
[1768735404343,0.28925363,142.34,142.26,3.32979857]
[1768735404631,5.24411056,142.33,142.26,3.32979857]
[1768735404835,0.28925363,142.34,142.26,3.32979857]
[1768735405027,5.23532224,142.33,142.26,3.32979857]
[1768735405226,0.28925363,142.34,142.26,3.32979857]
[1768735405526,5.23529909,142.33,142.26,3.32979857]
[1768735405731,0.28925363,142.34,142.26,3.32979857]
[1768735405933,5.23529909,142.33,142.26,3.32979857]
[1768735406135,0.28925363,142.34,142.26,3.32979857]
[1768735406334,5.23529909,142.33,142.26,3.32979857]
[1768735406536,0.28925363,142.34,142.26,3.32979857]
[1768735406835,5.23527618,142.33,142.26,3.32979857]
[1768735407032,0.28925363,142.34,142.26,3.32979857]
[1768735407234,5.23527208,142.33,142.26,3.32979857]
[1768735407434,0.28925363,142.34,142.26,3.32979857]
[1768735407633,5.23523763,142.33,142.26,3.32979857]
[1768735407830,0.28925363,142.34,142.26,3.32979857]
[1768735408042,5.23523763,142.33,142.26,3.32979857]
[1768735408241,0.28925363,142.34,142.26,3.32979857]
[1768735408438,5.23521694,142.33,142.26,3.32979857]
[1768735408633,0.28925363,142.34,142.26,3.32979857]
[1768735408836,5.23518062,142.33,142.26,3.32979857]
[1768735409141,0.28925363,142.34,142.26,3.32979857]
[1768735409334,5.23516298,142.33,142.26,3.32979857]
[1768735409535,0.28925363,142.34,142.26,3.32979857]
[1768735409732,5.23512092,142.33,142.26,3.32979857]
[1768735410042,0.28925363,142.34,142.26,3.32979857]
[1768735410242,5.23512092,142.33,142.26,3.32979857]
[1768735410442,0.28925363,142.34,142.26,3.32979857]
[1768735410645,5.23507375,142.33,142.26,3.32979857]
[1768735410942,0.28925363,142.34,142.26,3.32979857]
[1768735411143,5.23507375,142.33,142.26,3.32979857]
[1768735411346,0.28925363,142.34,142.26,3.32979857]
[1768735411552,5.23515956,142.33,142.26,3.32979857]
[1768735411844,0.28925363,142.34,142.26,3.32979857]
[1768735412050,5.23515956,142.33,142.26,3.32979857]
[1768735412251,0.28925363,142.34,142.26,3.32979857]
[1768735412549,5.23526687,142.33,142.26,3.32979857]
[1768735412740,0.28925363,142.34,142.26,3.32979857]
[1768735412941,5.23526686,142.33,142.26,3.32979857]
[1768735413141,0.28925363,142.34,142.26,3.32979857]
[1768735413347,5.23526686,142.33,142.26,3.32979857]
[1768735413550,0.28925363,142.34,142.26,3.32979857]
[1768735413740,5.23547714,142.33,142.26,3.32979857]
[1768735413940,0.28925363,142.34,142.26,3.32979857]
[1768735414137,5.23547714,142.33,142.26,3.32979857]
[1768735414342,0.28925363,142.34,142.26,3.32979857]
[1768735414546,5.23563682,142.33,142.26,3.32979857]
[1768735414747,0.28925363,142.34,142.26,3.32979857]
[1768735414946,5.23563682,142.33,142.26,3.32979857]
[1768735415147,0.28925363,142.34,142.26,3.32979857]
[1768735415347,5.23563682,142.33,142.26,3.32979857]
[1768735415544,0.28925363,142.34,142.26,3.32979857]
[1768735415749,5.23568642,142.33,142.26,3.32979857]
[1768735416051,0.28925363,142.34,142.26,3.32979857]
[1768735416257,5.23568642,142.33,142.26,3.32979857]
[1768735416448,0.28925363,142.34,142.26,3.32979857]
[1768735416649,5.23574919,142.33,142.26,3.32979857]
[1768735416847,0.28925363,142.34,142.26,3.32979857]
[1768735417046,5.23574919,142.33,142.26,3.32979857]
[1768735417247,0.28925363,142.34,142.26,3.32979857]
[1768735417442,5.23582562,142.33,142.26,3.32979857]
[1768735417643,0.28925363,142.34,142.26,3.32979857]
[1768735417848,5.23582562,142.33,142.26,3.32979857]
[1768735418156,0.28925363,142.34,142.26,3.32979857]
[1768735418357,5.23584804,142.33,142.26,3.32979857]
[1768735418558,0.28925363,142.34,142.26,3.32979857]
[1768735418759,5.23591637,142.33,142.26,3.32979857]
[1768735418960,0.28925363,142.34,142.26,3.32979857]
[1768735419161,5.23591637,142.33,142.26,3.32979857]
[1768735419362,0.28925363,142.34,142.26,3.32979857]
[1768735419562,5.23602297,142.33,142.26,3.32979857]
[1768735419755,0.28925363,142.34,142.26,3.32979857]
[1768735419957,5.23602297,142.33,142.26,3.32979857]
[1768735420158,0.28925363,142.34,142.26,3.32979857]
[1768735420365,5.23605024,142.33,142.26,3.32979857]
[1768735420559,0.28925363,142.34,142.26,3.32979857]
[1768735420860,5.23614583,142.33,142.26,3.32979857]
[1768735421165,0.28925363,142.34,142.26,3.32979857]
[1768735421365,5.23617491,142.33,142.26,3.32979857]
[1768735421578,0.28925363,142.34,142.26,3.32979857]
[1768735421762,5.23628629,142.33,142.26,3.32979857]
[1768735421964,0.28925363,142.34,142.26,3.32979857]
[1768735422167,5.23628629,142.33,142.26,3.32979857]
[1768735422463,0.28925363,142.34,142.26,3.32979857]
[1768735422666,5.23644608,142.33,142.26,3.32979857]
[1768735422965,0.28925363,142.34,142.26,3.32979857]
[1768735423162,5.23644608,142.33,142.26,3.32979857]
[1768735423362,0.28925363,142.34,142.26,3.32979857]
[1768735423562,5.23662743,142.33,142.26,3.32979857]
[1768735423864,0.28925363,142.34,142.26,3.32979857]
[1768735424171,5.23662743,142.33,142.26,3.32979857]
[1768735424368,0.28925363,142.34,142.26,3.32979857]
[1768735424562,5.23683332,142.33,142.26,3.32979857]
[1768735424856,0.28925363,142.34,142.26,3.32979857]
[1768735425060,5.23683332,142.33,142.26,3.32979857]
[1768735425263,0.28925363,142.34,142.26,3.32979857]
[1768735425463,5.23686535,142.33,142.26,3.32979857]
[1768735425674,0.28925363,142.34,142.26,3.32979857]
[1768735425862,5.23686535,142.33,142.26,3.32979857]
[1768735426063,0.28925363,142.34,142.26,3.32979857]
[1768735426263,5.23706787,142.33,142.26,3.32979857]
[1768735426468,0.28925363,142.34,142.26,3.32979857]
[1768735426765,5.23709943,142.33,142.26,3.32979857]
[1768735426964,0.28925363,142.34,142.26,3.32979857]
[1768735427168,5.23709943,142.33,142.26,3.32979857]
[1768735427369,0.28925363,142.34,142.26,3.32979857]
[1768735427576,5.23736745,142.33,142.26,3.32979857]
[1768735427868,0.28925363,142.34,142.26,3.32979857]
[1768735428070,5.23736745,142.33,142.26,3.32979857]
[1768735428370,0.28925363,142.34,142.26,3.32979857]
[1768735428568,5.23767827,142.33,142.26,3.32979857]
[1768735428764,0.28925363,142.34,142.26,3.32979857]
[1768735428971,5.23767827,142.33,142.26,3.32979857]
[1768735429171,0.28925363,142.34,142.26,3.32979857]
[1768735429370,5.23802036,142.33,142.26,3.32979857]
[1768735429572,0.28925363,142.34,142.26,3.32979857]
[1768735429767,5.23804652,142.33,142.26,3.32979857]
[1768735429972,0.28925363,142.34,142.26,3.32979857]
[1768735430176,5.23804652,142.33,142.26,3.32979857]
[1768735430471,0.28925363,142.34,142.26,3.32979857]
[1768735430664,5.23850013,142.33,142.26,3.32979857]
[1768735430860,0.28925363,142.34,142.26,3.32979857]
[1768735431059,5.23850013,142.33,142.26,3.32979857]
[1768735431273,0.28925363,142.34,142.26,3.32979857]
[1768735431472,5.2391079,142.33,142.26,3.32979857]
[1768735431675,0.28925363,142.34,142.26,3.32979857]
[1768735431874,5.2391079,142.33,142.26,3.32979857]
[1768735432076,0.28925363,142.34,142.26,3.32979857]
[1768735432277,5.2391079,142.33,142.26,3.32979857]
[1768735432477,0.28925363,142.34,142.26,3.32979857]
[1768735432677,5.24027932,142.33,142.26,3.32979857]
[1768735432866,0.28925363,142.34,142.26,3.32979857]
[1768735433177,5.24027932,142.33,142.26,3.32979857]
[1768735433378,0.28925363,142.34,142.26,3.32979857]
[1768735433578,5.24028285,142.33,142.26,3.32979857]
[1768735433774,0.28925363,142.34,142.26,3.32979857]
[1768735433980,5.24028285,142.33,142.26,3.32979857]
[1768735434178,0.28925363,142.34,142.26,3.32979857]
[1768735434377,5.24028723,142.33,142.26,3.32979857]
[1768735434679,0.28925363,142.34,142.26,3.32979857]
[1768735434878,5.24098304,142.33,142.26,3.32979857]
[1768735435078,0.28925363,142.34,142.26,3.32979857]
[1768735435378,5.24098304,142.33,142.26,3.32979857]
[1768735435578,0.28925363,142.34,142.26,3.32979857]
[1768735435779,5.24098827,142.33,142.26,3.32979857]
[1768735436080,0.28925363,142.34,142.26,3.32979857]
[1768735436269,5.24098827,142.33,142.26,3.32979857]
[1768735436469,0.28925363,142.34,142.26,3.32979857]
[1768735436671,5.2409944,142.33,142.26,3.32979857]
[1768735436875,0.28925363,142.34,142.26,3.32979857]
[1768735437070,5.2409944,142.33,142.26,3.32979857]
[1768735437282,0.28925363,142.34,142.26,3.32979857]
[1768735437582,5.24100148,142.33,142.26,3.32979857]
[1768735437782,0.28925363,142.34,142.26,3.32979857]
[1768735437984,5.24100148,142.33,142.26,3.32979857]
[1768735438182,0.28925363,142.34,142.26,3.32979857]
[1768735438383,5.24100956,142.33,142.26,3.32979857]
[1768735438586,0.28925363,142.34,142.26,3.32979857]
[1768735438784,5.24100956,142.33,142.26,3.32979857]
[1768735438977,0.28925363,142.34,142.26,3.32979857]
[1768735439179,5.24099343,142.33,142.26,3.32979857]
[1768735439474,0.28925363,142.34,142.26,3.32979857]
[1768735439678,5.24100255,142.33,142.26,3.32979857]
[1768735439880,0.28925363,142.34,142.26,3.32979857]
[1768735440079,5.24099675,142.33,142.26,3.32979857]
[1768735440279,0.28925363,142.34,142.26,3.32979857]
[1768735440580,5.24100325,142.33,142.26,3.32979857]
[1768735440781,0.28925363,142.34,142.26,3.32979857]
[1768735440985,5.24050131,142.33,142.26,3.32979857]
[1768735441186,0.28925363,142.34,142.26,3.32979857]
[1768735441385,5.24049298,142.33,142.26,3.32979857]
[1768735441586,0.28925363,142.34,142.26,3.32979857]
[1768735441789,5.24061064,142.33,142.26,3.32979857]
[1768735442087,5.24061064,142.32,142.26,3.32979857]
[1768735442287,21.1,142.42,142.26,3.32979857]
[1768735442488,21.1,142.4,142.26,3.32979857]
[1768735442785,21.1,142.38,142.26,3.32979857]
[1768735442986,26.33903721,142.37,142.26,3.32979857]
[1768735443188,5.23903721,142.36,142.26,3.32979857]
[1768735443390,5.23903721,142.35,142.26,3.32979857]
[1768735443592,5.23903721,142.34,142.26,3.32979857]
[1768735443790,5.23903721,142.33,142.26,3.32979857]
[1768735443991,5.23903721,142.32,142.26,3.32979857]
[1768735444298,5.23903721,142.31,142.26,3.32979857]
[1768735444490,21.1,142.41,142.26,3.32979857]
[1768735444690,21.1,142.39,142.26,3.32979857]
[1768735444892,21.1,142.37,142.26,3.32979857]
[1768735445186,5.23662632,142.36,142.26,3.32979857]
[1768735445392,5.23662632,142.35,142.26,3.32979857]
[1768735445588,21.1,142.37,142.26,3.32979857]
[1768735445589,5.23662632,142.34,142.26,3.32979857]
[1768735445788,5.23662632,142.33,142.26,3.32979857]
[1768735445998,5.23662632,142.32,142.26,3.32979857]
[1768735446205,21.1,142.41,142.26,3.32979857]
[1768735446388,21.1,142.39,142.26,3.32979857]
[1768735446690,21.1,142.37,142.26,3.32979857]
[1768735446893,5.23513767,142.36,142.26,3.32979857]
[1768735447092,5.23513767,142.35,142.26,3.32979857]
[1768735447288,5.23513767,142.34,142.26,3.32979857]
[1768735447500,5.23513767,142.33,142.26,3.32979857]
[1768735447795,5.23513767,142.32,142.26,3.32979857]
[1768735448002,21.1,142.41,142.26,3.32979857]
[1768735448204,21.1,142.39,142.26,3.32979857]
[1768735448394,21.1,142.37,142.26,3.32979857]
[1768735448594,5.2345869,142.36,142.26,3.32979857]
[1768735448895,5.2345869,142.35,142.26,3.32979857]
[1768735449095,5.2345869,142.34,142.26,3.32979857]
[1768735449403,5.2345869,142.33,142.26,3.32979857]
[1768735449596,5.2345869,142.32,142.26,3.32979857]
[1768735449797,21.1,142.41,142.26,3.32979857]
[1768735449798,2.72300782,142.4,142.26,0.50890109]
[1768735450099,2.72670294,142.37,142.26,0.50890109]
[1768735450296,2.72670294,142.35,142.26,0.50890109]
[1768735450496,2.72670294,142.33,142.26,0.50890109]
[1768735450698,7.96043023,142.32,142.26,0.50890109]
[1768735450999,2.72670294,142.32,142.26,0.50890109]
[1768735465415,2.72670294,142.32,142.22,3.45808743]
[1768735471524,2.79800696,142.3,142.22,3.45808743]
[1768735477028,8.05005861,142.29,142.22,3.45808743]
[1768735477222,2.8189535,142.29,142.22,3.45808743]
[1768735490332,2.81737947,142.27,142.22,3.45808743]
[1768735513457,2.72935379,142.35,142.22,3.45808743]
[1768735513654,2.72935379,142.33,142.22,3.45808743]
[1768735513854,7.958152,142.32,142.22,3.45808743]
[1768735514153,5.23195682,142.31,142.22,3.45808743]
[1768735514756,7.958152,142.31,142.22,3.45808743]
[1768735514957,2.72619518,142.31,142.22,3.45808743]
[1768735526361,2.68662452,142.38,142.22,3.45808743]
[1768735526565,2.68662452,142.36,142.22,3.45808743]
[1768735526760,2.68662452,142.34,142.22,3.45808743]
[1768735526962,2.68393824,142.32,142.22,3.45808743]
[1768735532667,2.67096264,142.3,142.22,3.45808743]
[1768735634662,2.51519146,142.38,142.22,3.45808743]
[1768735634865,2.51446343,142.36,142.22,3.45808743]
[1768735635161,2.51446343,142.34,142.22,3.45808743]
[1768735635360,2.51446343,142.32,142.22,3.45808743]
[1768735635560,7.7523103,142.31,142.22,3.45808743]
[1768735635760,2.51446343,142.31,142.22,3.45808743]
[1768735638065,2.51446343,142.31,142.23,3.26152545]
[1768735638363,1.22330609,142.39,142.24,3.26152545]
[1768735638559,5.23550246,142.38,142.24,3.26152545]
[1768735638755,5.23550246,142.37,142.24,3.26152545]
[1768735638960,5.23550246,142.36,142.24,3.26152545]
[1768735639160,5.23550246,142.35,142.24,3.26152545]
[1768735639361,5.23550246,142.34,142.24,3.26152545]
[1768735639565,5.23550246,142.33,142.24,3.26152545]
[1768735639869,21.1,142.41,142.24,3.26152545]
[1768735640066,26.33521406,142.4,142.24,3.26152545]
[1768735640363,5.23521406,142.39,142.24,3.26152545]
[1768735640567,5.23521406,142.38,142.24,3.26152545]
[1768735640871,5.23521406,142.37,142.24,3.26152545]
[1768735641165,5.23521406,142.36,142.24,3.26152545]
[1768735641367,5.23521406,142.35,142.24,3.26152545]
[1768735641568,5.23521406,142.34,142.24,3.26152545]
[1768735641767,5.23521406,142.33,142.24,3.26152545]